{"text_format":"3","workbook":"xlsx","n_sheets":4,"sheets":["Kontrolne točke","Plan razvoja","Informacije","Podaci grafikona"],"not_rendered":{"charts":1,"defined_names":2},"read":"whole","date_system":"1900"}

{"sheet":"Kontrolne točke","index":0,"n_rows":27,"n_cols":5,"rows_kept":27}
["Stvorite plan razvoja unosom važnih kontrolnih točaka i aktivnosti na ovaj radni list.\nNaslov je ovog radnog lista u ćeliji C1. \nInformacije o korištenju radnog lista, uključujući upute za čitače zaslona, nalaze se na radnom listu O radnoj knjizi.\nNastavite se kretati niz stupac A da biste pristupili daljnjim uputama.",null,"Kontrolne točke"]
["Zaglavlja tablice su i ćelijama od C2 do E2. Pomoću mogućnosti Sortiraj i filtriraj sortirajte ili potražite određene unose.\nU tablicu počevši od ćelije C3 unesite kontrolne točke s datumima i postavite položaj za iscrtavanje kontrolne točke.\nStupac B je bio sakriven. Grafikon generiran iz tih podataka s prikazom dijelova vremenske crte pomoću klizača. Stupac B pomaže odrediti koje kontrolne točke treba iscrtati kad je uvećan inkrement za klizač. \nUpozorenje: brisanjem ili izmjenom sadržaja u stupcu B može se narušiti integritet grafikona ugrađenih u ovu radnu knjigu.","Br.","Položaj","Datum","Kontrolna točka"]
["U ćeliju C1 unesite položaj za iscrtavanje datuma i kontrolne točke. Unesite pozitivan broj između 1 i 3 da biste iscrtali kontrolnu točku iznad vremenske crte. Unesite negativan broj između -1 i -3 da biste iscrtali kontrolnu točku ispod vremenske crte.\nU stupce D i E u tablici unesite datum i kontrolna točka ili aktivnost.\nPonovite ovaj uzorak za svaki novi redak u tablici desno.\nOgledni se podaci nalaze u recima od 3. do 26. Izmijenite ili izbrišite ogledne sadržaje da biste stvorili vlastiti plan razvoja.\nNastavite do ćelije A27 da biste vidjeli sljedeću uputu.",{"$f":"ROW($A1)","v":1},1,{"$f":"TODAY()","v":"2018-06-29"},"Početak"]
[null,{"$f":"ROW($A2)","v":2},-2,{"$f":"D3+10","v":"2018-07-09"},"Analiza problema\naktivnost 1"]
[null,3,1,{"$f":"D4+20","v":"2018-07-29"},"Razvoj poslovnog slučaja\naktivnost 1\naktivnost 2"]
[null,4,-1,{"$f":"D5+30","v":"2018-08-28"},"Pregled prezentacije"]
[null,5,{"v":-0.5,"d":"-1"},{"$f":"D6+40","v":"2018-10-07"},"Predstavljanje za rukovoditelje\naktivnost 1\naktivnost 2"]
[null,6,2,{"$f":"D7+50","v":"2018-11-26"},"Provjera napretka za rukovoditelje\naktivnost 1\naktivnost 2\naktivnost 3"]
[null,7,{"v":0.5,"d":"1"},{"$f":"D8+60","v":"2019-01-25"},"Ulog dioničara"]
[null,8,-1,{"$f":"D9+70","v":"2019-04-05"},"Odabir resursa"]
[null,9,{"v":0.5,"d":"1"},{"$f":"D10+80","v":"2019-06-24"},"Stvaranje timova\naktivnost 1 "]
[null,10,-2,{"$f":"D11+90","v":"2019-09-22"},"Predstavljanje za timove\naktivnost 1 \naktivnost 2\naktivnost 3\naktivnost 4"]
[null,11,3,{"$f":"D12+100","v":"2019-12-31"},"Početak prikupljanja podataka"]
[null,12,-1,{"$f":"D13+90","v":"2020-03-30"},"Analiza podataka"]
[null,13,1,{"$f":"D14+80","v":"2020-06-18"},"Dizajn"]
[null,14,1,{"$f":"D15+70","v":"2020-08-27"},"Dokaz izvedivosti"]
[null,15,-3,{"$f":"D16+60","v":"2020-10-26"},"Testiranje i analiza"]
[null,16,-2,{"$f":"D17+50","v":"2020-12-15"},"Redizajn"]
[null,17,2,{"$f":"D18+40","v":"2021-01-24"},"Ponovni razvoj"]
[null,18,-1,{"$f":"D19+30","v":"2021-02-23"},"Testiranje i analiza"]
[null,19,1,{"$f":"D20+20","v":"2021-03-15"},"Redizajn"]
[null,20,-3,{"$f":"D21+10","v":"2021-03-25"},"Ponovni razvoj"]
[null,21,2,{"$f":"D22+20","v":"2021-04-14"},"Završno testiranje"]
[null,22,1,{"$f":"D23+30","v":"2021-05-14"},"Beta-testiranje"]
[null,23,-3,{"$f":"D24+40","v":"2021-06-23"},"Revizija"]
[null,24,-2,{"$f":"D25+50","v":"2021-08-12"},"Objava za marketing"]
["Da biste dodali još redaka u tablicu plan razvoja kontrolne točke , jednostavno umetnite novi redak iznad ovog retka.\nNa ovom radnom listu više nema uputa.",null,"Da biste dodali još kontrolnih točaka, umetnite nove retke iznad ove crte."]

{"sheet":"Plan razvoja","index":1,"n_rows":3,"n_cols":4,"rows_kept":3}
["Na ovom je radnom listu grafikon koji prikazuje kontrolne točke s radnog lista Kontrolne točke. \nGodine su navedene u ćelijama B2, C2 i D2 i na njih je primijenjen stil Zaglavlje 3.\nOdjednom se iscrtava 10 kontrolnih točaka. \nPomoću klizača u ćelijama od B4 do D4 možete se kretati planom razvoja.\nGodine vremenske crte su u ćelijama od B3 do D3.\nNa ovom radnom listu više nema uputa."]
[]
[null,{"$f":"'Podaci grafikona'!B20","v":2018},{"$f":"'Podaci grafikona'!B21","v":""},{"$f":"'Podaci grafikona'!B22","v":2019}]

{"sheet":"Informacije","index":2,"n_rows":5,"n_cols":1,"rows_kept":5}
["O ovoj radnoj knjizi"]
["Vodič za čitače zaslona"]
["U ovoj su radnoj knjizi 4 radna lista. \n\nKontrolne točke\nPlan razvoja\nInformacije\nPodaci grafikona (sakriveno)\n\nUpute za svaki radni list nalaze se u stupcu A počevši od ćelije A1 svakog radnog lista. One su navedene sakrivenim tekstom. Svaki vas korak vodi kroz informacije u tom retku. Svaki sljedeći korak nastavlja se u ćeliji A2, A3 itd. ako nije izričito navedeno drugačije. Uputa za sljedeći korak, primjerice, može glasiti \"nastavite na ćeliju A6\". \n\nSakriveni tekst neće se ispisati.\n\nDa biste uklonili te upute s bilo kojeg radnog lista, jednostavno izbrišite stupac A.\n"]
["U planu razvoja za iscrtavanje kontrolnih točaka i aktivnosti koriste se položaji. Položaji se mogu koristiti za pridavanje važnosti određenoj kontrolnoj točci ili aktivnosti. Jednostavno prilagodite vrijednosti u skladu s vlastitim prioritetima. Kontrolna točka/aktivnost 3, primjerice, može biti važnija od kontrolne točke/aktivnosti 2. Da biste to naznačili na grafikonu, jednostavno kontrolnoj točci/aktivnosti 3 dodijelite veću vrijednost položaja od vrijednosti dodijeljene kontrolnoj točci/aktivnosti 2.  \n"]
["Ovo je posljednja uputa na ovom radnom listu."]

{"sheet":"Podaci grafikona","index":3,"n_rows":26,"n_cols":4,"rows_kept":26,"hidden":true}
["Na ovom su radnom listu podaci za stvaranje dinamičkog iscrtavanja grafikona. Nemojte izbrisati ovaj radni list!\nBrisanjem tog radnog lista mogle bi se ugroziti dinamičke mogućnosti radne knjige.","Nemojte izbrisati ovaj radni list!"]
["U ćeliji B2 je naslov tablice.","Sadržaji dinamičkog grafikona"]
["Zaglavlja tablice su u ćelijama od B3 do D3. \nOva se tablica automatski ažurira na temelju sadržaja unijetog na radni list Kontrolne točke.\nUpozorenje: izmjena ili brisanje sadržaja u ovoj tablici može ugroziti mogućnost dinamičkog ažuriranja grafikona Plan razvoja na radnom listu Plan razvoja.\nSljedeću uputu potražite u ćeliji A15.","Datum","Događaji","Položaj"]
[null,{"$f":"IFERROR(IF(LEN('Kontrolne točke'!D3)=0,\"\",INDEX(PlanRazvojaKontrolneTočke[],'Kontrolne točke'!$B3+$B$17,3)),\"\")","v":"2018-06-29"},{"$f":"IFERROR(IF(LEN('Kontrolne točke'!E3)=0,\"\",INDEX(PlanRazvojaKontrolneTočke[],'Kontrolne točke'!$B3+$B$17,4)),\"\")","v":"Početak"},{"$f":"IFERROR(INDEX(PlanRazvojaKontrolneTočke[],'Kontrolne točke'!$B3+$B$17,2),\"\")","v":1}]
[null,{"$f":"IFERROR(IF(LEN('Kontrolne točke'!D4)=0,\"\",INDEX(PlanRazvojaKontrolneTočke[],'Kontrolne točke'!$B4+$B$17,3)),\"\")","v":"2018-07-09"},{"$f":"IFERROR(IF(LEN('Kontrolne točke'!E4)=0,\"\",INDEX(PlanRazvojaKontrolneTočke[],'Kontrolne točke'!$B4+$B$17,4)),\"\")","v":"Analiza problema\naktivnost 1"},{"$f":"IFERROR(INDEX(PlanRazvojaKontrolneTočke[],'Kontrolne točke'!$B4+$B$17,2),\"\")","v":-2}]
[null,{"$f":"IFERROR(IF(LEN('Kontrolne točke'!D5)=0,\"\",INDEX(PlanRazvojaKontrolneTočke[],'Kontrolne točke'!$B5+$B$17,3)),\"\")","v":"2018-07-29"},{"$f":"IFERROR(IF(LEN('Kontrolne točke'!E5)=0,\"\",INDEX(PlanRazvojaKontrolneTočke[],'Kontrolne točke'!$B5+$B$17,4)),\"\")","v":"Razvoj poslovnog slučaja\naktivnost 1\naktivnost 2"},{"$f":"IFERROR(INDEX(PlanRazvojaKontrolneTočke[],'Kontrolne točke'!$B5+$B$17,2),\"\")","v":1}]
[null,{"$f":"IFERROR(IF(LEN('Kontrolne točke'!D6)=0,\"\",INDEX(PlanRazvojaKontrolneTočke[],'Kontrolne točke'!$B6+$B$17,3)),\"\")","v":"2018-08-28"},{"$f":"IFERROR(IF(LEN('Kontrolne točke'!E6)=0,\"\",INDEX(PlanRazvojaKontrolneTočke[],'Kontrolne točke'!$B6+$B$17,4)),\"\")","v":"Pregled prezentacije"},{"$f":"IFERROR(INDEX(PlanRazvojaKontrolneTočke[],'Kontrolne točke'!$B6+$B$17,2),\"\")","v":-1}]
[null,{"$f":"IFERROR(IF(LEN('Kontrolne točke'!D7)=0,\"\",INDEX(PlanRazvojaKontrolneTočke[],'Kontrolne točke'!$B7+$B$17,3)),\"\")","v":"2018-10-07"},{"$f":"IFERROR(IF(LEN('Kontrolne točke'!E7)=0,\"\",INDEX(PlanRazvojaKontrolneTočke[],'Kontrolne točke'!$B7+$B$17,4)),\"\")","v":"Predstavljanje za rukovoditelje\naktivnost 1\naktivnost 2"},{"$f":"IFERROR(INDEX(PlanRazvojaKontrolneTočke[],'Kontrolne točke'!$B7+$B$17,2),\"\")","v":-0.5}]
[null,{"$f":"IFERROR(IF(LEN('Kontrolne točke'!D8)=0,\"\",INDEX(PlanRazvojaKontrolneTočke[],'Kontrolne točke'!$B8+$B$17,3)),\"\")","v":"2018-11-26"},{"$f":"IFERROR(IF(LEN('Kontrolne točke'!E8)=0,\"\",INDEX(PlanRazvojaKontrolneTočke[],'Kontrolne točke'!$B8+$B$17,4)),\"\")","v":"Provjera napretka za rukovoditelje\naktivnost 1\naktivnost 2\naktivnost 3"},{"$f":"IFERROR(INDEX(PlanRazvojaKontrolneTočke[],'Kontrolne točke'!$B8+$B$17,2),\"\")","v":2}]
[null,{"$f":"IFERROR(IF(LEN('Kontrolne točke'!D9)=0,\"\",INDEX(PlanRazvojaKontrolneTočke[],'Kontrolne točke'!$B9+$B$17,3)),\"\")","v":"2019-01-25"},{"$f":"IFERROR(IF(LEN('Kontrolne točke'!E9)=0,\"\",INDEX(PlanRazvojaKontrolneTočke[],'Kontrolne točke'!$B9+$B$17,4)),\"\")","v":"Ulog dioničara"},{"$f":"IFERROR(INDEX(PlanRazvojaKontrolneTočke[],'Kontrolne točke'!$B9+$B$17,2),\"\")","v":0.5}]
[null,{"$f":"IFERROR(IF(LEN('Kontrolne točke'!D10)=0,\"\",INDEX(PlanRazvojaKontrolneTočke[],'Kontrolne točke'!$B10+$B$17,3)),\"\")","v":"2019-04-05"},{"$f":"IFERROR(IF(LEN('Kontrolne točke'!E10)=0,\"\",INDEX(PlanRazvojaKontrolneTočke[],'Kontrolne točke'!$B10+$B$17,4)),\"\")","v":"Odabir resursa"},{"$f":"IFERROR(INDEX(PlanRazvojaKontrolneTočke[],'Kontrolne točke'!$B10+$B$17,2),\"\")","v":-1}]
[null,{"$f":"IFERROR(IF(LEN('Kontrolne točke'!D11)=0,\"\",INDEX(PlanRazvojaKontrolneTočke[],'Kontrolne točke'!$B11+$B$17,3)),\"\")","v":"2019-06-24"},{"$f":"IFERROR(IF(LEN('Kontrolne točke'!E11)=0,\"\",INDEX(PlanRazvojaKontrolneTočke[],'Kontrolne točke'!$B11+$B$17,4)),\"\")","v":"Stvaranje timova\naktivnost 1 "},{"$f":"IFERROR(INDEX(PlanRazvojaKontrolneTočke[],'Kontrolne točke'!$B11+$B$17,2),\"\")","v":0.5}]
[null,{"$f":"IFERROR(IF(LEN('Kontrolne točke'!D12)=0,\"\",INDEX(PlanRazvojaKontrolneTočke[],'Kontrolne točke'!$B12+$B$17,3)),\"\")","v":"2019-09-22"},{"$f":"IFERROR(IF(LEN('Kontrolne točke'!E12)=0,\"\",INDEX(PlanRazvojaKontrolneTočke[],'Kontrolne točke'!$B12+$B$17,4)),\"\")","v":"Predstavljanje za timove\naktivnost 1 \naktivnost 2\naktivnost 3\naktivnost 4"},{"$f":"IFERROR(INDEX(PlanRazvojaKontrolneTočke[],'Kontrolne točke'!$B12+$B$17,2),\"\")","v":-2}]
[]
["Mogućnost kretanja kroz plan razvoja postiže se pomoću vrijednosti inkrementa. Naslov te mogućnosti je u ćeliji B15.\nU ćelijama B16 i B17 nalazi se tablica sa zaglavljem i jednom vrijednosti.\nSljedeću uputu potražite u ćeliji A19.","Mogućnost kretanja"]
[null,"Inkrement za retke"]
[null,0]
[]
["Na grafikonu Plan razvoja iscrtane su godine za vremensku crtu. Da biste to napravili, godine moraju biti preuzete s popisa kontrolna točka. \nNaslov tog odjeljka je \"Godina\" u ćeliji B19. \nVrijednosti godina automatski se generiraju u ćelijama od C20 do C22.\nUpozorenje: brisanjem ili izmjenom tih godina može se promijeniti preciznost iscrtavanja grafikona Plan razvoja.\nSljedeću uputu potražite u ćeliji A24.","Godina"]
[null,{"$f":"IFERROR(YEAR(B4),\"\")","v":2018},"<-- godina na početnom položaju u planu razvoja"]
[null,{"$f":"IFERROR(IF(YEAR($B$9)=$B$20,\"\",YEAR($B$9)),\"\")","v":""},"<-- godina za srednje razdoblje plana razvoja; imajte na umu da ona može biti prazna ako je to ista godina kao godina početnog položaja u planu razvoja"]
[null,{"$f":"IFERROR(IF(YEAR($B$13)=$B$20,\"\",YEAR($B$13)),\"\")","v":2019},"<-- godina na zadnjem položaju u planu razvoja; imajte na umu da ona može biti prazna ako je to ista godina kao godina početnog položaja u planu razvoja"]
[]
["Prstenaste oznake na grafikonu Plan razvoja sadrže datume iz dinamičkih sadržaja grafikona na radnom listu. Datumi su prvi datum u ćeliji C24, srednji datum u ćeliji C25 i zadnji datum u ćeliji C26.\nNa ovom radnom listu više nema uputa.","Prvi datum",{"$f":"B4","v":"2018-06-29"}]
[null,"Srednji datum",{"$f":"B9","v":"2018-11-26"}]
[null,"Zadnji datum",{"$f":"B13","v":"2019-09-22"}]